[Event "XXXI Torre Memorial 2019"]
[Site "Merida"]
[Date "2019.12.18"]
[Round "9.1"]
[White "Kevlishvili, Robby"]
[Black "Cordova, Emilio"]
[Result "1/2-1/2"]
[ECO "B33"]
[WhiteElo "2457"]
[BlackElo "2585"]
[Annotator "ChessBase"]
[PlyCount "51"]
[EventDate "2019.12.13"]
[EventType "swiss"]
[EventCountry "MEX"]
[SourceTitle "playchess.com"]
[Source "ChessBase"]
[SourceQuality "1"]
[TimeControl "5400+30"]

1. e4 {[%emt 0:00:00]} c5 {[%emt 0:11:07]} 2. Nf3 {[%emt 0:00:00]} Nc6 {[%emt 0:00:06]} 3. d4 {[%emt 0:00:00]} cxd4 {[%emt 0:00:04]} 4. Nxd4 {[%emt 0:00:00]} Nf6 {[%emt 0:00:06]} 5. Nc3 {[%emt 0:00:00]} e5 {[%emt 0:00:23]} 6. Ndb5 {[%emt 0:00:00]} d6 {[%emt 0:00:06]} 7. Bg5 {[%emt 0:00:00]} a6 {[%emt 0:00:05]} 8. Na3 {[%emt 0:00:03]} b5 {[%emt 0:00:54]} 9. Nd5 {[%emt 0:00:05]} Be7 {[%emt 0:00:05]} 10. Bxf6 {[%emt 0:00:04]} Bxf6 {[%emt 0:00:04]} 11. c3 {[%emt 0:00:08]} O-O {[%emt 0:00:18]} 12. Nc2 {[%emt 0:00:05]} Rb8 {[%emt 0:00:14]} 13. a4 {[%emt 0:02:20]} bxa4 {[%emt 0:00:46]} 14. Ncb4 {[%emt 0:00:08]} Nxb4 {[%emt 0:02:42]} 15. cxb4 {[%emt 0:00:05]} Bb7 {[%emt 0:28:10]} 16. Rxa4 {[%emt 0:19:51]} Bc6 {[%emt 0:00:26]} 17. Bxa6 {[%emt 0:05:40]} Bxa4 {[%emt 0:00:05]} 18. Qxa4 {[%emt 0:00:03]} Bg5 {[%emt 0:00:06]} 19. O-O {[%emt 0:00:41]} g6 {[%emt 0:00:04]} 20. Qb3 {[%emt 0:18:51]} Kh8 {[%emt 0:00:09]} 21. b5 {[%emt 0:03:15]} Qd7 {[%emt 0:05:41]} 22. Qc4 {[%emt 0:06:38]} Qa7 {[%emt 0:03:28]} 23. g3 {[%emt 0:10:44]} f5 {[%emt 0:07:04]} 24. exf5 {[%emt 0:00:44]} gxf5 {[%emt 0:04:24]} 25. Kg2 {[%emt 0:06:00]} Qc5 {[%emt 0:01:51]} 26. Qxc5 {[%emt 0:03:05]} 1/2-1/2

[Event "XXXI Torre Memorial 2019"]
[Site "Merida"]
[Date "2019.12.18"]
[Round "9.2"]
[White "Albornoz Cabrera, Carlos Daniel"]
[Black "Espinosa Veloz, Ermes"]
[Result "1-0"]
[ECO "D43"]
[WhiteElo "2555"]
[BlackElo "2489"]
[Annotator "ChessBase"]
[PlyCount "77"]
[EventDate "2019.12.13"]
[EventType "swiss"]
[EventCountry "MEX"]
[SourceTitle "playchess.com"]
[Source "ChessBase"]
[SourceQuality "1"]
[TimeControl "5400+30"]

1. Nf3 {[%emt 0:00:00]} d5 {[%emt 0:00:20]} 2. d4 {[%emt 0:00:00]} Nf6 {[%emt 0:00:15]} 3. c4 {[%emt 0:00:00]} e6 {[%emt 0:00:34]} 4. Nc3 {[%emt 0:00:08]} c6 {[%emt 0:00:46]} 5. Bg5 {[%emt 0:00:42]} h6 {[%emt 0:00:52]} 6. Bxf6 {[%emt 0:00:17]} Qxf6 {[%emt 0:00:07]} 7. e3 {[%emt 0:00:05]} Qd8 {[%emt 0:05:06]} 8. Bd3 {[%emt 0:03:08]} g6 {[%emt 0:02:04]} 9. O-O {[%emt 0:03:18]} Bg7 {[%emt 0:00:20]} 10. Qe2 {[%emt 0:04:46]} O-O {[%emt 0:02:17]} 11. e4 {[%emt 0:06:35]} dxc4 12. Bxc4 {[%emt 0:00:11]} Nd7 {[%emt 0:11:45]} 13. Rfd1 {[%emt 0:03:32]} b6 {[%emt 0:12:41]} 14. e5 Bb7 {[%emt 0:03:42]} 15. Ne4 {[%emt 0:16:29]} c5 {[%emt 0:01:07]} 16. dxc5 {[%emt 0:05:13]} Qc7 {[%emt 0:12:15]} 17. cxb6 {[%emt 0:01:53]} axb6 {[%emt 0:00:20]} 18. Rac1 {[%emt 0:07:12]} Nxe5 {[%emt 0:10:01]} 19. Bd5 {[%emt 0:05:14]} Qe7 {[%emt 0:05:45]} 20. Bxb7 {[%emt 0:06:00]} Qxb7 {[%emt 0:00:11]} 21. Nxe5 {[%emt 0:01:00]} Bxe5 {[%emt 0:00:11]} 22. b3 {[%emt 0:00:30]} Rfd8 {[%emt 0:08:04]} 23. g3 {[%emt 0:03:57]} Rxd1+ {[%emt 0:04:46]} 24. Rxd1 {[%emt 0:00:33]} Rc8 {[%emt 0:00:07]} 25. h4 {[%emt 0:01:46]} h5 {[%emt 0:07:19]} 26. Ng5 {[%emt 0:05:08]} Qc7 {[%emt 0:03:16]} 27. Qf3 {[%emt 0:00:19]} Kg7 {[%emt 0:02:27]} 28. a4 {[%emt 0:01:56]} Bf6 {[%emt 0:01:48]} 29. Ne4 {[%emt 0:00:05]} Be7 {[%emt 0:00:04]} 30. Kg2 {[%emt 0:03:10]} Qc2 {[%emt 0:05:17]} 31. Rd7 {[%emt 0:01:09]} Kf8 {[%emt 0:01:09]} 32. Nd6 {[%emt 0:01:11]} Qc6 {[%emt 0:00:30]} 33. Nxc8 {[%emt 0:00:08]} Qxd7 {[%emt 0:00:04]} 34. Nxb6 {[%emt 0:00:06]} Qd2 {[%emt 0:00:26]} 35. Nc4 {[%emt 0:00:09]} Qe1 {[%emt 0:00:53]} 36. a5 {[%emt 0:00:32]} Bc5 {[%emt 0:00:13]} 37. a6 {[%emt 0:01:39]} Kg7 {[%emt 0:00:30]} 38. Qf4 {[%emt 0:00:19]} Qb4 39. Ne5 1-0

[Event "XXXI Torre Memorial 2019"]
[Site "Merida"]
[Date "2019.12.18"]
[Round "9.3"]
[White "Santiago, Yago De Moura"]
[Black "Macieja, Bartlomiej"]
[Result "0-1"]
[ECO "A33"]
[WhiteElo "2479"]
[BlackElo "2513"]
[Annotator "ChessBase"]
[PlyCount "93"]
[EventDate "2019.12.13"]
[EventType "swiss"]
[EventCountry "MEX"]
[SourceTitle "playchess.com"]
[Source "ChessBase"]
[SourceQuality "1"]
[TimeControl "5400+30"]

1. c4 {[%emt 0:00:00]} c5 {[%emt 0:03:29]} 2. Nf3 {[%emt 0:00:55]} Nf6 {[%emt 0:00:18]} 3. Nc3 {[%emt 0:03:11]} Nc6 {[%emt 0:03:11]} 4. d4 {[%emt 0:00:31]} cxd4 {[%emt 0:00:03]} 5. Nxd4 {[%emt 0:00:11]} e6 {[%emt 0:00:02]} 6. a3 {[%emt 0:04:28]} Be7 {[%emt 0:00:14]} 7. e4 {[%emt 0:05:08]} O-O {[%emt 0:03:42]} 8. Nc2 {[%emt 0:01:48]} b6 {[%emt 0:00:30]} 9. Be2 {[%emt 0:00:30]} Bb7 {[%emt 0:07:14]} 10. O-O {[%emt 0:12:10]} Na5 {[%emt 0:00:30]} 11. e5 {[%emt 0:00:30]} Ne4 {[%emt 0:00:30]} 12. Nxe4 {[%emt 0:00:57]} Bxe4 {[%emt 0:10:39]} 13. Ne3 {[%emt 0:07:02]} Qc7 {[%emt 0:22:38]} 14. b4 {[%emt 0:00:30]} Nc6 {[%emt 0:00:30]} 15. Bb2 {[%emt 0:00:30]} Rad8 {[%emt 0:00:03]} 16. f3 {[%emt 0:09:19]} Bg6 {[%emt 0:00:30]} 17. Rc1 {[%emt 0:06:57]} Nxe5 {[%emt 0:20:45]} 18. f4 {[%emt 0:00:30]} Nc6 {[%emt 0:00:30]} 19. Kh1 {[%emt 0:18:46]} Rfe8 {[%emt 0:20:33]} 20. f5 {[%emt 0:04:54]} exf5 {[%emt 0:00:30]} 21. Nd5 {[%emt 0:04:34]} Qb8 {[%emt 0:00:42]} 22. Bd3 {[%emt 0:01:01]} Bg5 {[%emt 0:00:43]} 23. Bxf5 {[%emt 0:03:09]} Bxc1 {[%emt 0:00:33]} 24. Qxc1 {[%emt 0:01:10]} Qd6 {[%emt 0:01:28]} 25. Qg5 {[%emt 0:00:28]} Ne7 {[%emt 0:01:18]} 26. Bxg6 {[%emt 0:00:30]} Nxg6 {[%emt 0:00:30]} 27. h4 {[%emt 0:01:45]} h6 {[%emt 0:00:57]} 28. Qg4 {[%emt 0:00:01]} Qe6 {[%emt 0:00:11]} 29. Qd4 {[%emt 0:00:01]} Qe5 {[%emt 0:00:20]} 30. Qf2 {[%emt 0:00:25]} Qe6 {[%emt 0:00:30]} 31. h5 {[%emt 0:00:41]} Ne5 {[%emt 0:00:30]} 32. Bxe5 Qxe5 {[%emt 0:00:53]} 33. Qxf7+ {[%emt 0:04:55]} Kh8 34. Nf4 {[%emt 0:00:23]} Qg5 {[%emt 0:00:02]} 35. Kg1 {[%emt 0:01:51]} Kh7 {[%emt 0:00:53]} 36. Nd5 Rf8 37. Qg6+ {[%emt 0:02:42]} Qxg6 {[%emt 0:00:36]} 38. hxg6+ {[%emt 0:00:02]} Kxg6 {[%emt 0:00:30]} 39. Rd1 {[%emt 0:00:03]} Rf7 {[%emt 0:00:04]} 40. Kh2 {[%emt 0:00:51]} Re8 {[%emt 0:00:24]} 41. Rd4 {[%emt 0:01:30]} h5 {[%emt 0:00:26]} 42. Nc3 {[%emt 0:00:30]} Rf4 {[%emt 0:01:04]} 43. Rd5 {[%emt 0:00:21]} Rxc4 {[%emt 0:00:36]} 44. Nb5 {[%emt 0:00:19]} Rh4+ {[%emt 0:01:49]} 45. Kg1 {[%emt 0:00:08]} Re1+ {[%emt 0:00:30]} 46. Kf2 {[%emt 0:00:01]} Rhh1 {[%emt 0:00:07]} 47. a4 {[%emt 0:00:06]} 0-1

[Event "XXXI Torre Memorial 2019"]
[Site "Merida"]
[Date "2019.12.18"]
[Round "9.4"]
[White "Alvarez Pedraza, Aramis"]
[Black "Miranda Mesa, Elier"]
[Result "0-1"]
[ECO "A07"]
[WhiteElo "2429"]
[BlackElo "2477"]
[Annotator "ChessBase"]
[PlyCount "52"]
[EventDate "2019.12.13"]
[EventType "swiss"]
[EventCountry "MEX"]
[SourceTitle "playchess.com"]
[Source "ChessBase"]
[SourceQuality "1"]
[TimeControl "5400+30"]

1. Nf3 {[%emt 0:00:09]} d5 {[%emt 0:00:59]} 2. g3 {[%emt 0:00:07]} Nf6 {[%emt 0:00:33]} 3. Bg2 {[%emt 0:00:47]} c6 {[%emt 0:01:13]} 4. O-O {[%emt 0:00:12]} Bg4 {[%emt 0:00:10]} 5. b3 {[%emt 0:01:21]} e6 {[%emt 0:00:55]} 6. Bb2 {[%emt 0:00:23]} Nbd7 {[%emt 0:00:31]} 7. c4 {[%emt 0:00:48]} Be7 {[%emt 0:01:22]} 8. d3 {[%emt 0:04:32]} O-O {[%emt 0:01:46]} 9. Nbd2 {[%emt 0:01:20]} Re8 {[%emt 0:03:38]} 10. Rc1 {[%emt 0:02:28]} a5 {[%emt 0:00:51]} 11. a3 {[%emt 0:03:19]} Bd6 {[%emt 0:02:15]} 12. h3 {[%emt 0:02:03]} Bh5 {[%emt 0:06:33]} 13. Rc2 {[%emt 0:01:08]} Qe7 {[%emt 0:05:19]} 14. Qa1 {[%emt 0:02:07]} e5 {[%emt 0:00:31]} 15. cxd5 {[%emt 0:05:54]} cxd5 {[%emt 0:00:52]} 16. g4 {[%emt 0:01:10]} Bg6 {[%emt 0:00:31]} 17. Nh4 {[%emt 0:00:04]} Rad8 {[%emt 0:11:47]} 18. Nxg6 {[%emt 0:03:16]} hxg6 {[%emt 0:00:58]} 19. Rfc1 {[%emt 0:00:30]} g5 {[%emt 0:07:10]} 20. Nf3 {[%emt 0:04:21]} e4 {[%emt 0:04:05]} 21. dxe4 {[%emt 0:06:00]} dxe4 {[%emt 0:01:03]} 22. Nxg5 {[%emt 0:00:53]} Bf4 {[%emt 0:05:06]} 23. h4 {[%emt 0:06:54]} Bxc1 {[%emt 0:01:51]} 24. Qxc1 {[%emt 0:04:09]} Ne5 {[%emt 0:05:16]} 25. Rc7 {[%emt 0:01:44]} Rd1+ {[%emt 0:01:23]} 26. Qxd1 {[%emt 0:00:07]} Qxc7 {[%emt 0:00:02]} 0-1

[Event "XXXI Torre Memorial 2019"]
[Site "Merida"]
[Date "2019.12.18"]
[Round "9.5"]
[White "Berdayes Ason, Dylan Isidro"]
[Black "Ibarra Chami, Luis Fernando"]
[Result "0-1"]
[ECO "B56"]
[WhiteElo "2448"]
[BlackElo "2423"]
[Annotator "NA"]
[PlyCount "86"]
[EventDate "2019.12.13"]
[EventType "swiss"]
[EventCountry "MEX"]
[SourceTitle "playchess.com"]
[Source "ChessBase"]
[SourceQuality "1"]
[TimeControl "5400+30"]

1. e4 {[%emt 0:00:08]} c5 {[%emt 0:09:57]} 2. Nf3 {[%emt 0:00:03]} d6 {[%emt 0:01:09]} 3. d4 {[%emt 0:00:02]} cxd4 {[%emt 0:00:04]} 4. Nxd4 {[%emt 0:00:02]} Nf6 {[%emt 0:00:05]} 5. Nc3 {[%emt 0:00:03]} Nc6 {[%emt 0:00:09]} 6. f3 {[%emt 0:01:32]} e5 {[%emt 0:09:06]} 7. Nb3 {[%emt 0:00:27]} Be6 {[%emt 0:00:21]} 8. Be3 {[%emt 0:00:03]} Be7 {[%emt 0:10:17]} 9. Nd5 {[%emt 0:11:04]} O-O {[%emt 0:04:29]} 10. Be2 {[%emt 0:02:49]} Bxd5 {[%emt 0:09:57]} 11. exd5 {[%emt 0:01:55]} Nb4 {[%emt 0:00:26]} 12. c4 {[%emt 0:04:10]} Nh5 {[%emt 0:12:15]} 13. Qd2 {[%emt 0:16:35]} Na6 {[%emt 0:00:07]} 14. Na5 {[%emt 0:00:52]} Nf4 {[%emt 0:06:58]} 15. Bf1 {[%emt 0:06:07]} Bg5 {[%emt 0:03:14]} 16. Nb3 {[%emt 0:03:38]} h6 {[%emt 0:00:53]} 17. g3 {[%emt 0:00:20]} Ng6 {[%emt 0:01:20]} 18. h4 {[%emt 0:00:11]} Bxe3 {[%emt 0:00:35]} 19. Qxe3 {[%emt 0:00:02]} Nc5 {[%emt 0:03:45]} 20. h5 {[%emt 0:00:50]} Ne7 {[%emt 0:01:33]} 21. Bd3 {[%emt 0:00:16]} Na4 {[%emt 0:05:06]} 22. O-O-O {[%emt 0:00:14]} Qb6 {[%emt 0:04:49]} 23. Qxb6 {[%emt 0:00:14]} axb6 {[%emt 0:00:08]} 24. g4 {[%emt 0:00:13]} f5 {[%emt 0:00:47]} 25. gxf5 {[%emt 0:00:09]} Nxf5 {[%emt 0:00:05]} 26. Nd2 {[%emt 0:01:05]} Nd4 {[%emt 0:01:59]} 27. Be4 {[%emt 0:00:52]} Nc5 {[%emt 0:00:56]} 28. a3 {[%emt 0:00:13]} Rac8 {[%emt 0:00:24]} 29. Kb1 {[%emt 0:00:52]} Ncb3 {[%emt 0:00:41]} 30. Nxb3 {[%emt 0:00:20]} Nxb3 {[%emt 0:00:05]} 31. Ka2 {[%emt 0:00:29]} Nd4 {[%emt 0:01:24]} 32. b3 {[%emt 0:00:49]} Nxf3 {[%emt 0:01:11]} 33. Rdf1 {[%emt 0:00:59]} Nd2 {[%emt 0:01:07]} 34. Rxf8+ {[%emt 0:00:08]} Rxf8 {[%emt 0:00:04]} 35. Bc2 {[%emt 0:00:23]} Rf2 {[%emt 0:00:20]} 36. Kb2 {[%emt 0:00:32]} Nf3 {[%emt 0:00:38]} 37. Kc3 {[%emt 0:00:27]} Nd4 {[%emt 0:00:14]} 38. Bd1 {[%emt 0:00:35]} Rg2 {[%emt 0:03:55]} 39. a4 {[%emt 0:00:47]} Rg3+ {[%emt 0:00:20]} 40. Kb4 {[%emt 0:00:11]} Rd3 {[%emt 0:01:30]} 41. Rf1 {[%emt 0:00:35]} e4 {[%emt 0:00:28]} 42. Ka3 {[%emt 0:00:57]} e3 {[%emt 0:00:22]} 43. Re1 {[%emt 0:00:05]} Rxd1 {[%emt 0:00:53]} 0-1

[Event "XXXI Torre Memorial 2019"]
[Site "Merida"]
[Date "2019.12.18"]
[Round "9.6"]
[White "Gonzalez Zamora, Juan Carlos"]
[Black "Almeida Quintana, Omar"]
[Result "1-0"]
[ECO "A41"]
[WhiteElo "2535"]
[BlackElo "2554"]
[Annotator "ChessBase"]
[PlyCount "87"]
[EventDate "2019.12.13"]
[EventType "swiss"]
[EventCountry "MEX"]
[SourceTitle "playchess.com"]
[Source "ChessBase"]
[SourceQuality "1"]
[TimeControl "5400+30"]

1. d4 {[%emt 0:00:16]} d6 {[%emt 0:00:00]} 2. Nf3 {[%emt 0:00:13]} g6 {[%emt 0:00:00]} 3. c4 {[%emt 0:00:06]} Bg7 {[%emt 0:00:00]} 4. Nc3 {[%emt 0:00:06]} Bg4 {[%emt 0:01:09]} 5. e3 {[%emt 0:00:46]} e5 {[%emt 0:03:16]} 6. Be2 {[%emt 0:04:03]} Nc6 {[%emt 0:01:27]} 7. d5 {[%emt 0:00:15]} Nce7 {[%emt 0:02:13]} 8. e4 {[%emt 0:00:04]} Nf6 {[%emt 0:00:33]} 9. h3 {[%emt 0:01:33]} Bxf3 {[%emt 0:02:44]} 10. Bxf3 {[%emt 0:00:14]} O-O {[%emt 0:00:02]} 11. g4 {[%emt 0:02:26]} c6 {[%emt 0:00:03]} 12. g5 {[%emt 0:00:14]} Nd7 {[%emt 0:02:17]} 13. h4 {[%emt 0:00:14]} cxd5 {[%emt 0:05:32]} 14. cxd5 {[%emt 0:00:13]} Qa5 {[%emt 0:01:26]} 15. Bd2 {[%emt 0:02:19]} Nc5 {[%emt 0:03:49]} 16. Qb1 {[%emt 0:02:40]} Qb6 {[%emt 0:02:45]} 17. b4 {[%emt 0:01:50]} Nd7 {[%emt 0:01:01]} 18. Be3 {[%emt 0:04:17]} Qd8 {[%emt 0:00:18]} 19. h5 {[%emt 0:04:37]} Nb6 {[%emt 0:02:42]} 20. h6 {[%emt 0:00:20]} Bh8 {[%emt 0:00:02]} 21. Qb3 {[%emt 0:00:13]} Rc8 {[%emt 0:08:42]} 22. Bg4 {[%emt 0:00:58]} Ra8 {[%emt 0:03:39]} 23. a4 {[%emt 0:00:39]} f5 {[%emt 0:08:17]} 24. gxf6 {[%emt 0:00:17]} Bxf6 {[%emt 0:00:30]} 25. a5 {[%emt 0:00:07]} Nbc8 {[%emt 0:00:33]} 26. Rc1 {[%emt 0:00:11]} a6 {[%emt 0:01:00]} 27. Na4 {[%emt 0:00:17]} Kh8 {[%emt 0:00:38]} 28. Nb6 {[%emt 0:04:51]} Nxb6 {[%emt 0:00:04]} 29. Bxb6 {[%emt 0:00:07]} Qe8 {[%emt 0:00:23]} 30. Rc7 {[%emt 0:00:12]} Nc8 {[%emt 0:13:10]} 31. Be3 {[%emt 0:05:22]} Rb8 {[%emt 0:07:43]} 32. Qc4 {[%emt 0:00:57]} Ne7 {[%emt 0:02:17]} 33. Bd7 {[%emt 0:07:23]} Qd8 {[%emt 0:05:35]} 34. Ba7 {[%emt 0:09:23]} Ra8 {[%emt 0:01:38]} 35. Rxb7 {[%emt 0:03:04]} Nc8 {[%emt 0:00:20]} 36. Be3 {[%emt 0:02:50]} Bg5 {[%emt 0:00:24]} 37. Qc7 {[%emt 0:01:58]} Bxe3 {[%emt 0:01:57]} 38. Qxd8 {[%emt 0:00:12]} Bxf2+ {[%emt 0:00:04]} 39. Ke2 {[%emt 0:00:07]} Rxd8 {[%emt 0:00:06]} 40. Kxf2 {[%emt 0:00:03]} Ne7 {[%emt 0:00:37]} 41. Rc1 {[%emt 0:00:20]} Ng8 {[%emt 0:02:00]} 42. Be6 {[%emt 0:03:17]} Rdb8 {[%emt 0:01:14]} 43. Rxb8 {[%emt 0:00:26]} Rxb8 {[%emt 0:00:06]} 44. Rc8 {[%emt 0:00:03]} 1-0

[Event "XXXI Torre Memorial 2019"]
[Site "Merida"]
[Date "2019.12.18"]
[Round "9.7"]
[White "Vera Gonzalez-Quevedo, Reynaldo"]
[Black "Martinez Ramirez, Lennis"]
[Result "0-1"]
[ECO "A46"]
[WhiteElo "2436"]
[BlackElo "2454"]
[Annotator "ChessBase"]
[PlyCount "66"]
[EventDate "2019.12.13"]
[EventType "swiss"]
[EventCountry "MEX"]
[SourceTitle "playchess.com"]
[Source "ChessBase"]
[SourceQuality "1"]
[TimeControl "5400+30"]

1. d4 Nf6 {[%emt 0:11:21]} 2. Nf3 {[%emt 0:00:00]} c5 {[%emt 0:00:26]} 3. e3 {[%emt 0:02:55]} d5 {[%emt 0:00:55]} 4. c3 {[%emt 0:00:38]} e6 {[%emt 0:01:09]} 5. Nbd2 {[%emt 0:00:07]} Nc6 {[%emt 0:00:11]} 6. Bd3 {[%emt 0:00:37]} b6 {[%emt 0:03:12]} 7. O-O {[%emt 0:01:13]} Be7 {[%emt 0:00:04]} 8. Qe2 Bb7 {[%emt 0:01:50]} 9. b3 {[%emt 0:19:38]} O-O {[%emt 0:00:40]} 10. Bb2 {[%emt 0:00:06]} Qc7 {[%emt 0:00:24]} 11. Rac1 {[%emt 0:01:06]} e5 {[%emt 0:01:14]} 12. dxe5 {[%emt 0:17:36]} Nxe5 {[%emt 0:00:55]} 13. Nxe5 {[%emt 0:00:07]} Qxe5 {[%emt 0:00:06]} 14. f4 {[%emt 0:00:44]} Qe6 {[%emt 0:05:19]} 15. c4 {[%emt 0:00:57]} Rad8 {[%emt 0:00:25]} 16. Rcd1 {[%emt 0:03:51]} Ng4 {[%emt 0:08:15]} 17. Rfe1 {[%emt 0:00:02]} d4 {[%emt 0:28:09]} 18. exd4 {[%emt 0:06:06]} cxd4 {[%emt 0:02:11]} 19. Bxh7+ {[%emt 0:13:00]} Kh8 {[%emt 0:00:46]} 20. Qxe6 {[%emt 0:02:47]} fxe6 {[%emt 0:00:11]} 21. Rxe6 {[%emt 0:16:48]} Bc5 {[%emt 0:01:02]} 22. Bd3 {[%emt 0:09:59]} Ne3 {[%emt 0:00:01]} 23. Rb1 {[%emt 0:02:01]} Nxg2 {[%emt 0:00:02]} 24. Be4 {[%emt 0:01:01]} Nxf4 {[%emt 0:00:02]} 25. Re5 {[%emt 0:00:20]} Bd6 {[%emt 0:00:25]} 26. Rb5 {[%emt 0:00:41]} Nh3+ {[%emt 0:12:39]} 27. Kg2 {[%emt 0:00:01]} Rf2+ {[%emt 0:00:10]} 28. Kxh3 {[%emt 0:00:04]} Bc8+ {[%emt 0:00:06]} 29. Kh4 {[%emt 0:00:57]} Rf4+ {[%emt 0:00:49]} 30. Kh5 {[%emt 0:01:05]} Be7 {[%emt 0:00:08]} 31. Rd5 {[%emt 0:00:31]} Rdf8 {[%emt 0:01:11]} 32. Bxd4 Rf2 {Kh4 Bd6} 33. Rb5 Rxh2+ {Bb2} 0-1

[Event "XXXI Torre Memorial 2019"]
[Site "Merida"]
[Date "2019.12.18"]
[Round "9.8"]
[White "Quesada Perez, Yasser"]
[Black "Fernandez Cardoso, Alexey"]
[Result "0-1"]
[ECO "B85"]
[WhiteElo "2582"]
[BlackElo "2441"]
[Annotator "ChessBase"]
[PlyCount "52"]
[EventDate "2019.12.13"]
[EventType "swiss"]
[EventCountry "MEX"]
[SourceTitle "playchess.com"]
[Source "ChessBase"]
[SourceQuality "1"]
[TimeControl "5400+30"]

1. e4 {[%emt 0:07:02]} c5 {[%emt 0:00:00]} 2. Nf3 {[%emt 0:00:09]} e6 {[%emt 0:00:16]} 3. d4 {[%emt 0:00:11]} cxd4 {[%emt 0:00:08]} 4. Nxd4 {[%emt 0:00:03]} a6 {[%emt 0:00:09]} 5. Be2 {[%emt 0:01:30]} Nf6 {[%emt 0:02:03]} 6. Nc3 {[%emt 0:00:08]} Qc7 {[%emt 0:02:02]} 7. O-O {[%emt 0:00:42]} d6 {[%emt 0:04:00]} 8. a4 {[%emt 0:02:09]} Nc6 {[%emt 0:05:59]} 9. Kh1 {[%emt 0:01:28]} Be7 {[%emt 0:00:16]} 10. f4 {[%emt 0:01:03]} O-O {[%emt 0:00:33]} 11. Be3 {[%emt 0:06:51]} Bd7 {[%emt 0:04:22]} 12. Nb3 {[%emt 0:00:33]} b6 {[%emt 0:00:32]} 13. Bf3 {[%emt 0:01:17]} Rab8 {[%emt 0:01:31]} 14. g4 {[%emt 0:00:17]} Bc8 {[%emt 0:00:41]} 15. g5 {[%emt 0:00:40]} Nd7 {[%emt 0:00:08]} 16. Bg2 {[%emt 0:00:15]} Re8 {[%emt 0:00:38]} 17. Rf3 {[%emt 0:01:58]} Bf8 {[%emt 0:06:30]} 18. Rh3 {[%emt 0:00:30]} g6 {[%emt 0:00:17]} 19. Qe1 {[%emt 0:01:26]} Bg7 {[%emt 0:00:15]} 20. Rd1 {[%emt 0:08:06]} Na5 {[%emt 0:09:28]} 21. f5 {[%emt 0:05:49]} Nc4 {[%emt 0:05:39]} 22. Bc1 {[%emt 0:03:03]} b5 {[%emt 0:06:14]} 23. axb5 {[%emt 0:00:32]} axb5 {[%emt 0:00:06]} 24. e5 {[%emt 0:16:51]} Ncxe5 {[%emt 0:13:08]} 25. Ne4 {[%emt 0:02:06]} exf5 {[%emt 0:04:24]} 26. Nxd6 {[%emt 0:00:18]} Re6 {[%emt 0:01:04]} 0-1

[Event "XXXI Torre Memorial 2019"]
[Site "Merida"]
[Date "2019.12.18"]
[Round "9.9"]
[White "Diaz Perez, Michel Alejandro"]
[Black "Ramirez, Alejandro"]
[Result "1/2-1/2"]
[ECO "C07"]
[WhiteElo "2455"]
[BlackElo "2589"]
[Annotator "ChessBase"]
[PlyCount "51"]
[EventDate "2019.12.13"]
[EventType "swiss"]
[EventCountry "MEX"]
[SourceTitle "playchess.com"]
[Source "ChessBase"]
[SourceQuality "1"]
[TimeControl "5400+30"]

1. e4 {[%emt 0:03:22]} e6 {[%emt 0:00:40]} 2. d4 {[%emt 0:00:09]} d5 {[%emt 0:00:05]} 3. Nd2 {[%emt 0:00:08]} c5 {[%emt 0:02:10]} 4. exd5 {[%emt 0:00:29]} Qxd5 {[%emt 0:06:23]} 5. dxc5 {[%emt 0:00:43]} Bxc5 {[%emt 0:02:03]} 6. Ngf3 {[%emt 0:00:29]} Nf6 {[%emt 0:00:05]} 7. Bc4 {[%emt 0:00:19]} Qc6 {[%emt 0:00:08]} 8. Qe2 {[%emt 0:01:16]} O-O {[%emt 0:02:36]} 9. O-O {[%emt 0:00:13]} a6 {[%emt 0:03:42]} 10. a4 {[%emt 0:00:44]} Qc7 {[%emt 0:08:42]} 11. Ne4 {[%emt 0:04:05]} Be7 {[%emt 0:05:41]} 12. Bd3 {[%emt 0:01:44]} Nc6 {[%emt 0:03:19]} 13. c3 {[%emt 0:07:46]} Nd5 {[%emt 0:08:24]} 14. Re1 {[%emt 0:08:22]} Nf4 {[%emt 0:17:45]} 15. Bxf4 {[%emt 0:00:53]} Qxf4 {[%emt 0:00:02]} 16. Ned2 {[%emt 0:01:35]} Rd8 {[%emt 0:03:56]} 17. Nc4 {[%emt 0:01:52]} Bd7 {[%emt 0:00:18]} 18. Nb6 {[%emt 0:09:25]} Rab8 {[%emt 0:00:04]} 19. Nxd7 {[%emt 0:00:17]} Rxd7 {[%emt 0:00:03]} 20. Be4 {[%emt 0:00:42]} Qc7 {[%emt 0:01:13]} 21. b4 {[%emt 0:14:17]} Bf6 {[%emt 0:00:49]} 22. Rac1 {[%emt 0:00:10]} Rbd8 {[%emt 0:06:44]} 23. g3 {[%emt 0:00:17]} g6 {[%emt 0:00:34]} 24. h4 {[%emt 0:00:25]} Ne7 {[%emt 0:03:23]} 25. c4 {[%emt 0:01:50]} a5 {[%emt 0:03:03]} 26. b5 {[%emt 0:02:58]} 1/2-1/2